bitfinex-derivatives/quotes_SOLF0:USTF0_20240926
["timestamp","ask_amount","ask_price","bid_price","bid_amount"]
[1727353166423,3.2662,153.09,153.06,11.04]
[1727353166628,3.2662,153.09,153.06,14.3068]
[1727353168325,3.2664,153.08,153.06,11.04]
[1727353168523,3.2664,153.08,153.03,1.3225]
[1727353168728,11.04,153.12,153.05,11.04]
[1727353169430,24.07114559,153.12,153.05,14.307]
[1727353169625,11.04,153.12,153.07,11.04]
[1727353170029,5.9261238,153.15,153.08,11.04]
[1727353170030,23.47954995,153.13,153.08,11.04]
[1727353170228,13.0529,153.23,153.08,11.04]
[1727353170229,3.28899405,153.18,153.08,3.25892175]
[1727353170533,10.44330407,153.18,153.13,11.04]
[1727353170853,13.02440005,153.18,153.13,11.04]
[1727353171129,3.2648,153.16,153.13,11.04]
[1727353171521,16.28920005,153.16,153.13,11.04]
[1727353171723,3.2648,153.16,153.13,11.04]
[1727353172129,16.28405253,153.17,153.15,11.04]
[1727353172335,11.04,153.18,153.13,11.04]
[1727353172628,3.32592786,153.17,153.13,11.04]
[1727353172828,3.265,153.15,153.13,11.04]
[1727353173432,24.05521844,153.17,153.09,3.8968]
[1727353173628,24.05521844,153.17,153.11,11.04]
[1727353174026,3.2652,153.14,153.11,11.04]
[1727353174250,11.04,153.17,153.09,3.8968]
[1727353174430,11.04,153.14,153.09,1.297]
[1727353174628,3.2656,153.12,153.09,1.297]
[1727353174926,11.04,153.14,153.08,11.04]
[1727353174927,14.23981704,153.14,153.08,11.04]
[1727353175228,14.23981704,153.14,153.05,78.42]
[1727353175229,3.2662,153.09,153.05,78.42]
[1727353175437,11.04,153.1,153.05,78.42]
[1727353175735,3.2666,153.08,153.05,78.42]
[1727353175932,1.2967,153.16,153.05,81.687]
[1727353176133,11.04,153.1,153.05,81.687]
[1727353176628,3.2663,153.09,153.05,81.687]
[1727353176834,14.26320261,153.11,153.07,11.04]
[1727353177025,11.04,153.11,153.07,11.04]
[1727353177926,3.28823529,153.12,153.07,11.04]
[1727353178126,1.2967,153.16,153.1,11.04]
[1727353178127,11.04,153.15,153.1,11.04]
[1727353178332,14.30843512,153.16,153.07,17.25]
[1727353178633,3.27679738,153.14,153.07,17.25]
[1727353178932,14.30843512,153.16,153.09,3.266]
[1727353179135,3.31797385,153.15,153.09,3.266]
[1727353180036,3.2657,153.12,153.09,3.266]
[1727353182238,3.266,153.1,153.05,17.25]
[1727353182937,3.266,153.1,153.06,3.2667]
[1727353183237,3.2662,153.09,153.06,3.2667]
[1727353183743,3.266,153.1,153.06,3.2667]
[1727353185638,6.5264,153.23,153.08,17.25]
[1727353185835,4.59485793,153.17,153.08,17.25]
[1727353186027,1.3185,153.17,153.08,17.25]
[1727353186231,3.2652,153.14,153.11,3.2657]
[1727353186841,13.02295404,153.16,153.12,3.2655]
[1727353187043,13.02295404,153.16,153.1,17.25]
[1727353187044,1.3185,153.17,153.1,17.25]
[1727353187244,23.46287629,153.19,153.1,17.25]
[1727353187445,3.2647,153.16,153.1,17.25]
[1727353188134,3.2647,153.16,153.12,3.2654]
[1727353190039,3.2647,153.16,153.1,17.25]
[1727353190749,3.2647,153.16,153.12,3.2654]
[1727353194648,3.2647,153.16,153.12,20.5154]
[1727353196052,3.18805541,153.18,153.12,20.5154]
[1727353196350,13.01362443,153.19,153.12,20.5154]
[1727353196648,3.2648,153.16,153.12,20.5154]
[1727353198445,3.2648,153.16,153.14,11.03]
[1727353202553,13.01108748,153.18,153.15,11.03]
[1727353202852,13.00831595,153.2,153.15,11.03]
[1727353203352,3.2645,153.17,153.15,11.03]
[1727353204457,11.03,153.21,153.15,11.03]
[1727353204458,3.2643,153.18,153.15,11.03]
[1727353204952,11.03,153.2,153.15,11.03]
[1727353205153,11.03,153.19,153.14,11.03]
[1727353205451,11.03,153.2,153.15,11.03]
[1727353205650,14.32558783,153.22,153.16,11.03]
[1727353205851,11.03,153.21,153.16,11.03]
[1727353206249,3.2644,153.18,153.16,11.03]
[1727353210457,11.03,153.21,153.16,11.03]
[1727353211653,1.3464,153.23,153.09,1.2921]
[1727353211961,14.28915032,153.26,153.22,11.03]
[1727353212465,3.2632,153.23,153.22,11.03]
[1727353214258,3.25915032,153.26,153.2,11.03]
[1727353214462,3.25915032,153.26,153.22,11.03]
[1727353214656,14.28915032,153.26,153.22,11.03]
[1727353214857,3.2632,153.24,153.22,11.03]
[1727353215357,64.01704959,153.25,153.23,11.03]
[1727353215659,64.01704959,153.25,153.22,11.03]
[1727353215857,60.75414959,153.25,153.22,11.03]
[1727353216065,3.2631,153.24,153.22,11.03]
[1727353216555,3.2629,153.25,153.22,14.2933]
[1727353216956,12.99053665,153.27,153.22,14.2933]
[1727353217558,11.03,153.28,153.22,14.2933]
[1727353218361,14.38543665,153.29,153.23,11.03]
[1727353218556,24.02053665,153.28,153.23,11.03]
[1727353218751,3.2629,153.25,153.23,11.03]
[1727353220760,3.2629,153.25,153.22,14.2932]
[1727353221263,3.2626,153.26,153.23,14.293]
[1727353221953,14.35168745,153.28,153.22,3.2633]
[1727353222154,11.03,153.27,153.21,11.03]
[1727353222359,3.2629,153.25,153.21,11.03]
[1727353223264,11.03,153.27,153.15,79.6438]
[1727353223561,2.6742,153.32,153.15,79.6438]
[1727353223562,11.03,153.26,153.21,11.03]
[1727353223762,3.2633,153.23,153.21,11.03]
[1727353223961,11.03,153.24,153.15,79.6438]
[1727353224159,11.03,153.23,153.15,79.6438]
[1727353224370,14.24088035,153.23,153.17,11.03]
[1727353224553,23.39068807,153.28,153.2,11.03]
[1727353224554,11.03,153.24,153.2,11.03]
[1727353224863,11.03,153.23,153.18,11.03]
[1727353225362,3.2637,153.21,153.18,11.03]
[1727353227560,3.2635,153.22,153.18,14.2942]
[1727353228266,3.2637,153.21,153.18,11.03]
[1727353229565,6.5241,153.29,153.19,11.03]
[1727353229868,11.03,153.24,153.19,11.03]
[1727353230063,3.2636,153.21,153.19,11.03]
[1727353230367,11.03,153.24,153.19,11.03]
[1727353230561,6.5241,153.29,153.2,11.03]
[1727353230865,11.03,153.25,153.2,11.03]
[1727353231366,11.03,153.25,153.19,3.2639]
[1727353231367,1.3148,153.31,153.22,11.03]
[1727353231670,11.03,153.27,153.22,11.03]
[1727353231864,3.2629,153.25,153.22,14.2933]
[1727353233996,1.3148,153.31,153.16,11.03]
[1727353233997,11.03,153.23,153.16,11.03]
[1727353234160,14.26221765,153.23,153.17,11.03]
[1727353234560,11.03,153.24,153.18,11.03]
[1727353234873,11.03,153.26,153.2,11.03]
[1727353235067,3.2634,153.22,153.2,11.03]
[1727353235571,3.2637,153.21,153.18,14.2942]
[1727353235772,3.2637,153.21,153.18,11.03]
[1727353236172,11.03,153.23,153.18,11.03]
[1727353236375,3.19597031,153.24,153.17,3.2643]
[1727353236376,17.25,153.26,153.17,3.2643]
[1727353236572,17.25,153.28,153.17,17.25]
[1727353236772,17.25,153.28,153.2,3.2638]
[1727353236983,17.25,153.29,153.2,3.2638]
[1727353237275,17.25,153.29,153.17,17.25]
[1727353237473,3.263,153.24,153.2,17.25]
[1727353237673,17.25,153.29,153.21,1.2917]
[1727353238168,12.99307557,153.28,153.21,1.2917]
[1727353239677,3.2633,153.23,153.21,1.2917]
[1727353243280,3.2627,153.26,153.23,3.263]
[1727353243880,1.3148,153.31,153.22,17.25]
[1727353243881,24.7245214,153.31,153.22,17.25]
[1727353244085,12.99304143,153.31,153.27,17.25]
[1727353244279,25.31634995,153.42,153.29,17.25]
[1727353244586,17.25,153.4,153.29,17.25]
[1727353244782,10.41410852,153.39,153.29,18.5982]
[1727353245081,3.261,153.34,153.29,21.8601]
[1727353245275,10.41410852,153.39,153.29,1.3482]
[1727353246079,17.25,153.37,153.29,1.3482]
[1727353246279,3.2617,153.3,153.29,1.3482]
[1727353246584,17.25,153.35,153.28,2.6716]
[1727353246585,3.24779454,153.33,153.28,1.288]
[1727353246779,17.25,153.33,153.23,17.25]
[1727353246979,20.50717947,153.33,153.23,19.9369]
[1727353247384,20.50717947,153.33,153.23,2.6869]
[1727353247385,17.25,153.31,153.23,2.6869]
[1727353248086,3.2629,153.25,153.23,2.6869]
[1727353248386,17.25,153.31,153.23,2.6869]
[1727353248786,20.52513165,153.31,153.23,2.6869]
[1727353248989,3.2626,153.26,153.23,2.6869]
[1727353250387,3.26227474,153.31,153.23,19.9369]
[1727353250586,17.25,153.33,153.23,19.9369]
[1727353250786,17.25,153.33,153.24,3.2628]
[1727353251284,3.2625,153.27,153.23,24.4999]
[1727353251483,3.2625,153.27,153.23,21.2368]
[1727353251780,20.46069469,153.33,153.23,21.2368]
[1727353251982,3.2627,153.26,153.23,21.2368]
[1727353252178,17.25,153.31,153.23,3.9868]
[1727353252585,3.2625,153.27,153.23,3.9868]
[1727353252788,17.25,153.31,153.23,3.9868]
[1727353253287,2.6698,153.32,153.24,17.25]
[1727353253684,3.2621,153.28,153.24,17.25]
[1727353253887,17.25,153.33,153.24,17.25]
[1727353254280,17.25,153.33,153.25,3.2626]
[1727353254884,3.2619,153.29,153.25,3.2626]
[1727353255194,17.25,153.33,153.23,3.9868]
[1727353255690,3.2625,153.27,153.23,7.2499]
[1727353255891,17.25,153.33,153.23,7.2499]
[1727353256084,4.65021018,153.34,153.18,95.59]
[1727353256287,17.25,153.29,153.19,3.9704]
[1727353256790,3.2625,153.26,153.22,3.2633]
[1727353257092,17.25,153.29,153.19,21.2204]
[1727353257282,3.2633,153.23,153.19,21.2204]
[1727353257486,3.2633,153.23,153.19,24.4844]
[1727353257986,3.2631,153.24,153.19,24.4844]
[1727353258189,3.2631,153.24,153.2,3.2638]
[1727353258492,3.2631,153.24,153.19,21.2204]
[1727353258694,3.2632,153.23,153.19,7.2343]
[1727353258888,3.2632,153.23,153.19,5.8966]
[1727353259990,17.25,153.27,153.19,5.8966]
[1727353259991,3.2631,153.24,153.2,3.2638]
[1727353260392,17.25,153.27,153.19,2.6327]
[1727353260591,2.6296,153.32,153.19,2.6327]
[1727353260592,17.25,153.29,153.19,19.8827]
[1727353260787,17.25,153.31,153.21,17.25]
[1727353260988,12.90652895,153.3,153.21,17.25]
[1727353261200,2.6296,153.32,153.21,17.25]
[1727353261385,19.8796,153.32,153.21,17.25]
[1727353261694,12.90633385,153.31,153.23,17.25]
[1727353261891,14.25113385,153.32,153.23,17.25]
[1727353262093,3.2615,153.31,153.27,3.2622]
[1727353262390,62.10197299,153.34,153.25,17.25]
[1727353262391,60.71077299,153.34,153.25,17.25]
[1727353262694,60.71077299,153.34,153.21,3.33519047]
[1727353262695,60.71077299,153.34,153.27,17.25]
[1727353263098,17.25,153.37,153.27,17.25]
[1727353263397,3.9989,153.38,153.29,17.25]
[1727353263398,12.90065634,153.36,153.29,17.25]
[1727353263591,15.58235634,153.38,153.29,17.25]
[1727353263795,15.58235634,153.38,153.32,3.2611]
[1727353263994,15.58235634,153.38,153.29,17.25]
[1727353263995,12.90065634,153.38,153.29,17.25]
[1727353264188,12.90065634,153.38,153.31,17.25]
[1727353264389,3.26,153.38,153.33,3.2609]
[1727353264591,3.26,153.38,153.31,17.25]
[1727353264785,12.90065634,153.41,153.31,17.25]
[1727353265003,12.90065634,153.41,153.35,3.2605]
[1727353265004,3.2598,153.39,153.35,3.2605]
[1727353265192,3.2598,153.39,153.32,1.2662]
[1727353265193,12.90065634,153.41,153.32,1.2662]
[1727353265591,3.2599,153.39,153.32,1.2662]
[1727353265990,12.90065634,153.41,153.33,17.25]
[1727353266299,3.2596,153.4,153.36,3.2603]
[1727353266801,3.2597,153.4,153.36,3.2604]
[1727353267501,3.2593,153.42,153.38,3.2599]
[1727353267692,1.3564,153.48,153.37,17.25]
[1727353267693,3.3238729,153.46,153.37,17.25]
[1727353267999,19.9309,153.48,153.37,17.25]
[1727353268196,12.87444252,153.47,153.39,3.2596]
[1727353268392,17.25,153.46,153.36,1.3852]
[1727353268590,17.25,153.46,153.38,3.2599]
[1727353268792,5.96758363,153.48,153.35,1.3891]
[1727353268793,17.25,153.44,153.35,1.3891]
[1727353269196,17.25,153.44,153.37,3.2602]
[1727353269592,17.25,153.44,153.35,1.3891]
[1727353270196,3.2595,153.41,153.35,1.3891]
[1727353270800,3.2595,153.41,153.37,3.2601]
[1727353271000,17.25,153.44,153.32,19.9014]
[1727353271298,17.25,153.44,153.35,3.2605]
[1727353271299,1.3123,153.43,153.35,3.2605]
[1727353271596,17.25,153.44,153.34,17.25]
[1727353272001,3.2596,153.4,153.34,17.25]
[1727353272193,3.2596,153.4,153.36,3.2603]
[1727353273003,3.2598,153.39,153.35,3.2605]
[1727353273299,17.25,153.41,153.32,19.9014]
[1727353273700,3.23949634,153.4,153.32,2.6514]
[1727353273902,20.48949634,153.4,153.32,1.3852]
[1727353274092,17.25,153.4,153.32,1.3852]
[1727353274296,20.46927192,153.4,153.32,1.3852]
[1727353274801,3.2603,153.37,153.33,3.261]
[1727353275500,3.2604,153.36,153.33,3.261]
[1727353275796,3.2604,153.36,153.32,4.6464]
[1727353276597,3.21927192,153.4,153.32,1.3852]
[1727353276801,17.25,153.42,153.32,1.3852]
[1727353277204,3.2601,153.38,153.34,3.2608]
[1727353277498,17.25,153.44,153.33,17.25]
[1727353277703,12.84332079,153.43,153.33,17.25]
[1727353277906,3.2597,153.4,153.35,17.25]
[1727353278102,17.25,153.44,153.35,17.25]
[1727353278496,3.2595,153.41,153.37,3.2601]
[1727353278692,3.2595,153.41,153.35,17.25]
[1727353278898,3.2593,153.42,153.38,3.2598]
[1727353279815,17.25,153.44,153.33,1.335]
[1727353280502,3.2599,153.39,153.33,1.335]
[1727353280900,17.25,153.44,153.33,1.335]
[1727353281199,3.2599,153.39,153.35,3.2605]
[1727353281406,17.25,153.44,153.33,1.335]
[1727353281596,17.25,153.44,153.34,17.25]
[1727353281797,3.2597,153.4,153.36,3.2603]
[1727353282204,3.2597,153.4,153.37,3.2601]
[1727353282506,3.2595,153.41,153.37,3.2601]
[1727353282806,3.2595,153.41,153.38,3.26]
[1727353283007,1.3123,153.47,153.38,17.25]
[1727353283299,1.3123,153.47,153.39,3.2597]
[1727353283506,3.2591,153.43,153.39,3.2597]
[1727353283700,1.3123,153.47,153.39,3.2597]
[1727353283905,1.3123,153.47,153.38,17.25]
[1727353284306,1.3123,153.47,153.4,17.25]
[1727353284506,3.2585,153.45,153.4,17.25]
[1727353284699,2.6809,153.48,153.4,17.25]
[1727353285505,3.2587,153.45,153.4,17.25]
[1727353285701,2.6809,153.48,153.4,17.25]
[1727353285906,2.6809,153.48,153.38,17.25]
[1727353286103,2.6809,153.48,153.35,1.3084]
[1727353286104,17.25,153.46,153.36,17.25]
[1727353286510,1.319,153.45,153.36,17.25]
[1727353287509,1.319,153.45,153.38,3.26]
[1727353287904,3.2594,153.41,153.38,3.26]
[1727353288809,1.319,153.45,153.37,3.2601]
[1727353289199,1.319,153.45,153.38,3.26]
[1727353289405,1.319,153.45,153.36,17.25]
[1727353290206,3.2596,153.4,153.37,3.2601]
[1727353290411,17.25,153.43,153.35,1.3084]
[1727353291008,3.2598,153.4,153.36,3.2603]
[1727353292011,3.2598,153.4,153.37,3.2602]
[1727353297013,3.26810176,153.41,153.33,1.335]
[1727353297211,17.25,153.42,153.33,1.335]
[1727353297416,3.2603,153.37,153.33,4.5959]
[1727353297809,3.2603,153.37,153.33,1.335]
[1727353298215,3.2601,153.38,153.34,3.2607]
[1727353298416,3.2601,153.38,153.33,1.335]
[1727353299131,3.2599,153.39,153.34,17.25]
[1727353299720,3.2599,153.39,153.35,3.2604]
[1727353301819,17.25,153.44,153.36,3.2604]
[1727353301820,3.2597,153.4,153.36,3.2604]
[1727353303021,17.25,153.44,153.36,3.2604]
[1727353303022,3.2598,153.39,153.36,3.2604]
[1727353304728,3.2598,153.39,153.35,3.2605]
[1727353305025,3.21503131,153.41,153.35,3.2605]
[1727353305223,17.25,153.44,153.36,3.2604]
[1727353305527,3.2597,153.4,153.34,17.25]
[1727353305724,17.25,153.44,153.36,3.2603]
[1727353305922,17.25,153.44,153.34,17.25]
[1727353306520,17.25,153.44,153.37,3.2601]
[1727353307416,17.25,153.44,153.36,20.5103]
[1727353307819,3.2597,153.4,153.36,20.5103]
[1727353308721,3.33137638,153.4,153.33,1.335]
[1727353308926,17.25,153.4,153.32,1.3852]
[1727353309128,20.53538812,153.4,153.32,1.3852]
[1727353309425,17.25,153.38,153.3,79.5574]
[1727353309832,3.261,153.34,153.3,82.819]
[1727353310218,3.2612,153.33,153.3,78.26]
[1727353310417,17.25,153.36,153.3,78.26]
[1727353311131,17.25,153.36,153.27,1.3641]
[1727353311430,3.2614,153.32,153.28,3.2619]
[1727353311630,17.25,153.36,153.27,1.3641]
[1727353311826,17.25,153.34,153.26,3.2625]
[1727353312124,17.25,153.38,153.25,1.3859]
[1727353312330,17.25,153.38,153.29,3.2618]
[1727353313128,3.2612,153.33,153.29,3.2618]
[1727353313326,17.25,153.38,153.3,3.2615]
[1727353313825,3.2609,153.34,153.3,3.2615]
[1727353314231,17.25,153.38,153.3,3.2615]
[1727353314423,3.2611,153.33,153.3,3.2615]
[1727353314624,1.3512,153.39,153.28,3.262]
[1727353314625,17.25,153.36,153.28,3.262]
[1727353314824,3.2613,153.32,153.26,17.25]
[1727353315220,3.2613,153.32,153.25,1.3859]
[1727353315221,17.25,153.36,153.25,1.3859]
[1727353315422,1.3512,153.39,153.25,1.3859]
[1727353315624,17.25,153.34,153.25,1.3859]
[1727353316130,17.25,153.32,153.23,1.2941]
[1727353316330,3.26360788,153.31,153.23,1.2941]
[1727353316527,1.4001,153.33,153.23,1.2941]
[1727353316528,3.2621,153.28,153.23,1.2941]
[1727353316828,17.25,153.3,153.23,1.2941]
[1727353317032,3.2628,153.25,153.18,1.3415]
[1727353317224,17.25,153.28,153.18,2.647]
[1727353317427,17.25,153.28,153.22,3.2634]
[1727353317828,3.2627,153.26,153.22,3.2634]
[1727353319033,17.25,153.29,153.22,3.2634]
[1727353319330,17.25,153.29,153.23,3.2632]
[1727353319632,17.25,153.31,153.21,95.53]
[1727353320624,3.2621,153.28,153.21,95.53]
[1727353320825,17.25,153.31,153.21,95.53]
[1727353321226,3.2625,153.27,153.23,3.263]
[1727353321433,17.25,153.29,153.21,78.28]
[1727353321630,17.25,153.27,153.21,78.28]
[1727353322631,3.2631,153.24,153.21,78.28]
[1727353323127,3.2632,153.23,153.21,78.28]
[1727353323438,3.2632,153.23,153.19,3.2638]
[1727353324032,17.25,153.25,153.18,5.9112]
[1727353324328,17.25,153.25,153.17,1.3476]
[1727353324329,20.48170333,153.25,153.17,1.3476]
[1727353324523,20.48170333,153.25,153.14,2.6281]
[1727353324524,17.25,153.23,153.14,2.6281]
[1727353324729,3.2638,153.2,153.14,2.6281]
[1727353325124,17.25,153.21,153.14,2.6281]
[1727353325528,17.25,153.21,153.13,1.2765]
[1727353325835,17.25,153.21,153.11,17.25]
[1727353326349,3.2639,153.2,153.16,3.2645]
[1727353326633,20.46892286,153.23,153.13,17.25]
[1727353327532,3.2642,153.19,153.13,17.25]
[1727353327931,3.8971,153.25,153.18,3.264]
[1727353327932,3.2635,153.22,153.18,3.264]
[1727353328131,3.8971,153.25,153.15,17.25]
[1727353328534,3.8971,153.25,153.13,17.25]
[1727353328721,17.25,153.23,153.13,17.25]
[1727353328926,3.32298948,153.22,153.13,17.25]
[1727353329232,17.25,153.23,153.11,17.25]
[1727353329423,17.25,153.2,153.11,17.25]
[1727353329832,3.2645,153.17,153.11,17.25]
[1727353330130,17.25,153.2,153.09,21.1546]
[1727353330329,17.25,153.18,153.09,21.1546]
[1727353331538,3.2648,153.16,153.12,3.2654]
[1727353332629,17.25,153.14,153.05,78.36]
[1727353332827,26.1764,153.23,153.05,82.3506]
[1727353332828,17.25,153.12,153.05,82.3506]
[1727353333251,3.2661,153.1,153.06,3.2668]
[1727353333434,17.25,153.12,153.05,82.3506]
[1727353333825,17.25,153.12,153.05,85.6175]
[1727353334033,17.25,153.12,153.05,82.3506]
[1727353334339,1.3494,153.16,153.05,82.3506]
[1727353334340,20.57037121,153.14,153.05,82.3506]
[1727353334531,17.25,153.14,153.05,82.3506]
[1727353334932,17.25,153.14,153.08,3.2662]
[1727353334933,3.2656,153.12,153.08,3.2662]
[1727353335136,17.25,153.14,153.05,82.3506]
[1727353335330,20.48965753,153.14,153.05,82.3506]
[1727353336335,30.85965753,153.14,153.05,82.3506]
[1727353336541,1.3494,153.16,153.05,82.3506]
[1727353336841,4.64853077,153.16,153.05,82.3506]
[1727353337041,1.3494,153.16,153.05,82.3506]
[1727353337237,3.2659,153.11,153.07,3.2665]
[1727353337638,3.2661,153.1,153.06,3.2668]
[1727353338236,3.2662,153.09,153.05,85.6175]
[1727353339249,27.62,153.14,153.05,82.3506]
[1727353339642,2.659,153.17,153.05,82.3506]
[1727353339643,30.279,153.17,153.05,82.3506]
[1727353340053,30.279,153.17,153.09,3.266]
[1727353340345,1.3441,153.17,153.08,27.62]
[1727353340542,27.62,153.22,153.08,27.62]
[1727353340742,3.2643,153.18,153.1,27.62]
[1727353340943,3.2643,153.18,153.11,1.3408]
[1727353341350,3.2643,153.18,153.12,1.3406]
[1727353341545,3.2643,153.18,153.14,3.265]
[1727353343339,3.2643,153.18,153.12,1.3406]
[1727353343340,1.3184,153.23,153.12,1.3406]
[1727353343542,1.3184,153.23,153.13,1.2713]
[1727353343848,1.3057,153.24,153.13,1.2713]
[1727353343849,1.3057,153.24,153.13,28.8913]
[1727353344049,1.3613,153.27,153.15,27.62]
[1727353344446,3.2627,153.26,153.22,3.2634]
[1727353344647,1.3052,153.28,153.15,27.62]
[1727353345244,27.62,153.3,153.18,27.62]
[1727353345557,27.62,153.3,153.19,2.7622]
[1727353345755,4.0521,153.32,153.19,2.7622]
[1727353346145,4.0521,153.32,153.2,1.3013]
[1727353346846,3.2627,153.26,153.22,3.2633]
[1727353348353,4.0521,153.32,153.2,28.9213]
[1727353348745,60.71254406,153.34,153.2,28.9213]
[1727353348948,3.2621,153.28,153.24,3.2628]
[1727353349147,60.71254406,153.34,153.2,28.9213]
[1727353349348,3.2432234,153.33,153.2,28.9213]
[1727353349555,3.2621,153.29,153.24,3.2628]
[1727353350554,3.2617,153.31,153.2,28.9213]
[1727353350857,60.71254406,153.34,153.23,27.62]
[1727353352159,3.2616,153.31,153.27,3.2623]
[1727353352455,60.71254406,153.34,153.23,27.62]
[1727353353360,60.71254406,153.34,153.25,3.2626]
[1727353353361,3.262,153.29,153.25,3.2626]
[1727353353758,3.262,153.29,153.23,27.62]
[1727353353759,27.62,153.35,153.23,27.62]
[1727353354258,3.2618,153.3,153.23,27.62]
[1727353354963,3.31342211,153.36,153.23,27.62]
[1727353354964,3.2616,153.31,153.23,27.62]
[1727353355258,3.31342211,153.36,153.23,27.62]
[1727353355460,3.2618,153.3,153.25,3.2626]
[1727353355667,3.2618,153.3,153.23,27.62]
[1727353356349,31.483,153.38,153.23,27.62]
[1727353356552,3.863,153.38,153.25,27.62]
[1727353356756,1.2853,153.38,153.26,2.5787]
[1727353356950,3.30918347,153.39,153.27,1.338]
[1727353357158,27.62,153.4,153.27,1.338]
[1727353357351,3.20803967,153.39,153.27,1.338]
[1727353357558,30.90961106,153.4,153.27,1.338]
[1727353358165,27.62,153.37,153.27,1.338]
[1727353358959,27.62,153.37,153.28,3.262]
[1727353359260,6.5196,153.39,153.27,1.338]
[1727353359759,3.2612,153.33,153.29,3.2618]
[1727353361362,3.2613,153.32,153.29,3.2618]
[1727353363058,3.2611,153.33,153.29,3.2618]
[1727353363854,3.2611,153.33,153.27,1.338]
[1727353364053,3.2609,153.34,153.27,1.338]
[1727353364256,3.2609,153.34,153.29,17.22]
[1727353364865,3.2609,153.34,153.3,3.2616]
[1727353366662,3.2607,153.35,153.31,3.2615]
[1727353366861,3.2607,153.35,153.29,17.22]
[1727353367870,3.2607,153.35,153.31,3.2614]
[1727353369169,3.2609,153.34,153.31,3.2614]
[1727353370671,17.22,153.39,153.31,3.2614]
[1727353370672,3.2607,153.35,153.31,3.2614]
[1727353370860,17.22,153.39,153.29,17.22]
[1727353371365,17.22,153.39,153.3,3.2616]
[1727353371366,3.261,153.34,153.3,3.2616]
[1727353371871,3.2612,153.33,153.3,3.2616]
[1727353372273,3.2612,153.33,153.29,3.2618]
[1727353372578,3.2612,153.33,153.27,18.558]
[1727353374074,3.2612,153.33,153.29,3.2617]
[1727353374272,3.2612,153.33,153.27,18.558]
[1727353374273,3.2614,153.32,153.27,18.558]
[1727353375874,3.2614,153.32,153.28,3.262]
[1727353376073,3.2614,153.32,153.27,18.558]
[1727353376575,3.2614,153.32,153.28,3.262]
[1727353377071,3.2614,153.32,153.27,18.558]
[1727353377271,3.2616,153.31,153.27,18.558]
[1727353377472,3.2616,153.31,153.27,1.338]
[1727353377674,17.22,153.35,153.27,4.6002]
[1727353378876,3.2617,153.31,153.27,3.2622]
[1727353379985,3.2617,153.3,153.27,3.2622]
[1727353381480,2.7698,153.36,153.28,17.22]
[1727353382077,3.2612,153.33,153.29,3.2618]
[1727353382275,3.2612,153.33,153.28,17.22]
[1727353382276,2.7698,153.36,153.28,17.22]
[1727353382575,2.7698,153.36,153.32,3.2612]
[1727353382576,3.2606,153.36,153.32,3.2612]
[1727353382776,3.2606,153.36,153.3,17.22]